bitfinex-derivatives/quotes_SOLF0:USTF0_20230402
["timestamp","ask_amount","ask_price","bid_price","bid_amount"]
[1680404933375,42.1622375,20.965,20.961,19.09]
[1680404933570,42.1622375,20.964,20.961,19.09]
[1680404933772,42.1622375,20.967,20.961,19.09]
[1680404934076,43.9158951,20.966,20.961,19.09]
[1680404934275,42.16236909,20.965,20.961,19.09]
[1680404934476,42.16236909,20.964,20.961,19.09]
[1680404934678,42.16236909,20.967,20.961,19.09]
[1680404934878,43.91589594,20.966,20.961,19.09]
[1680404935082,43.91589594,20.965,20.961,19.09]
[1680404935278,43.91589594,20.964,20.961,19.09]
[1680404935480,42.16236909,20.963,20.961,19.09]
[1680404935679,42.16236909,20.967,20.961,19.09]
[1680404935879,1.75356764,20.966,20.961,19.09]
[1680404936080,42.16236909,20.965,20.961,19.09]
[1680404936383,1.75356764,20.964,20.961,19.09]
[1680404936678,42.16236909,20.963,20.961,19.09]
[1680404937080,42.16236909,20.962,20.961,19.09]
[1680404937481,42.16236909,20.967,20.961,19.09]
[1680404937680,43.9159268,20.966,20.961,19.09]
[1680404937874,43.9159268,20.965,20.961,19.09]
[1680404938083,43.9159268,20.964,20.961,19.09]
[1680404938282,42.16236909,20.963,20.961,19.09]
[1680404938481,42.16236909,20.962,20.961,19.09]
[1680404938677,42.16236909,20.967,20.961,19.09]
[1680404938881,43.91592417,20.966,20.961,19.09]
[1680404939081,43.91592417,20.965,20.961,19.09]
[1680404939380,43.91592417,20.964,20.961,19.09]
[1680404939581,42.16236909,20.963,20.961,19.09]
[1680404939782,42.16236909,20.962,20.961,19.09]
[1680404939980,42.16236909,20.966,20.961,19.09]
[1680404940183,43.91591843,20.965,20.961,19.09]
[1680404940376,42.16236909,20.964,20.961,19.09]
[1680404940683,42.16236909,20.963,20.961,19.09]
[1680404940883,42.16236909,20.962,20.961,19.09]
[1680404941277,42.16236909,20.966,20.961,19.09]
[1680404941584,43.9159217,20.965,20.961,19.09]
[1680404941783,43.9159217,20.964,20.961,19.09]
[1680404941980,42.16236909,20.963,20.961,19.09]
[1680404942179,42.16236909,20.962,20.961,19.09]
[1680404942382,42.16236909,20.966,20.961,19.09]
[1680404942588,42.16236909,20.965,20.961,19.09]
[1680404942883,42.16236909,20.964,20.961,19.09]
[1680404943089,42.16236909,20.963,20.961,19.09]
[1680404943291,42.16236909,20.962,20.961,19.09]
[1680404943590,42.16236909,20.966,20.961,19.09]
[1680404946990,42.16236909,20.966,20.959,19.09]
[1680404946991,61.13236909,20.966,20.959,19.09]
[1680404947290,42.16236909,20.965,20.959,19.09]
[1680404949992,1.7537212,20.964,20.959,19.09]
[1680404950187,42.16236909,20.963,20.959,19.09]
[1680404950593,42.16236909,20.965,20.959,19.09]
[1680404950794,1.75371958,20.964,20.959,19.09]
[1680404950993,42.16236909,20.963,20.959,19.09]
[1680404951393,42.16236909,20.962,20.959,19.09]
[1680404951591,42.16236909,20.961,20.959,19.09]
[1680404951892,42.16236909,20.96,20.959,19.09]
[1680404952094,42.16236909,20.965,20.959,19.09]
[1680404952395,43.91608769,20.964,20.959,19.09]
[1680404952595,43.91608769,20.963,20.959,19.09]
[1680404952797,42.16236909,20.962,20.959,19.09]
[1680404952993,42.16236909,20.961,20.959,19.09]
[1680404953195,42.16236909,20.96,20.959,19.09]
[1680404953493,42.16236909,20.965,20.959,19.09]
[1680404953693,1.75371791,20.964,20.959,19.09]
[1680404953896,42.16236909,20.963,20.959,19.09]
[1680404954396,42.16236909,20.965,20.959,19.09]
[1680404954695,43.91608246,20.964,20.959,19.09]
[1680404954896,43.91608246,20.963,20.959,19.09]
[1680404955196,42.16236909,20.962,20.959,19.09]
[1680404955397,42.16236909,20.961,20.959,19.09]
[1680404955596,42.16236909,20.96,20.959,19.09]
[1680404956796,42.16236909,20.965,20.959,19.09]
[1680404957097,1.75371386,20.964,20.959,19.09]
[1680404957297,42.16236909,20.963,20.959,19.09]
[1680404957797,42.16236909,20.962,20.959,19.09]
[1680404957998,42.16236909,20.961,20.959,19.09]
[1680404958296,42.16236909,20.96,20.959,19.09]
[1680404958497,52.16236909,20.965,20.959,19.09]
[1680404958791,42.16236909,20.964,20.959,19.09]
[1680404959197,42.16236909,20.965,20.959,19.09]
[1680404959499,42.16236909,20.964,20.959,19.09]
[1680404959698,42.16236909,20.963,20.959,19.09]
[1680404959894,42.16236909,20.962,20.959,19.09]
[1680404960196,42.16236909,20.961,20.959,19.09]
[1680404960397,42.16236909,20.96,20.959,19.09]
[1680404961300,42.16236909,20.964,20.959,19.09]
[1680404964100,19.09,20.963,20.956,19.04]
[1680404964302,42.16236909,20.962,20.956,19.04]
[1680404980808,42.16236909,20.962,20.957,10.0]
[1680404981010,42.16236909,20.962,20.96,19.04]
[1680404981311,42.16236909,20.961,20.96,19.04]
[1680404981911,42.16236909,20.966,20.96,19.04]
[1680404982109,43.91591037,20.965,20.96,19.04]
[1680404982309,42.16236909,20.964,20.96,19.04]
[1680404982611,42.16236909,20.963,20.96,19.04]
[1680404982811,42.16236909,20.962,20.96,19.04]
[1680404983003,18.97,20.967,20.96,19.04]
[1680404983004,42.16236909,20.961,20.96,19.04]
[1680404983204,42.16236909,20.966,20.96,19.04]
[1680404983411,1.75354208,20.965,20.96,19.04]
[1680404983606,42.16236909,20.964,20.96,19.04]
[1680404984014,42.16236909,20.963,20.96,19.04]
[1680404984213,42.16236909,20.966,20.96,19.04]
[1680404984514,1.75354794,20.965,20.96,19.04]
[1680404984715,42.16236909,20.964,20.96,19.04]
[1680404985211,42.16236909,20.963,20.96,19.04]
[1680404985405,42.16236909,20.966,20.96,19.04]
[1680404985608,1.7535471,20.965,20.96,19.04]
[1680404985805,42.16236909,20.964,20.963,19.09]
[1680404986010,67.07931166,20.97,20.963,19.09]
[1680404986208,42.14012818,20.969,20.963,19.09]
[1680404994322,47.98931166,20.97,20.963,19.09]
[1680404996922,47.98931166,20.97,20.964,19.04]
[1680404997226,47.9243,20.97,20.964,19.04]
[1680404999730,0.06185693,20.974,20.967,19.09]
[1680404999930,1.81495245,20.974,20.967,19.09]
[1680405000129,42.1387326,20.973,20.967,19.09]
[1680405000327,1.75309552,20.972,20.967,19.09]
[1680405000528,42.1387326,20.971,20.967,19.09]
[1680405000928,0.06185693,20.974,20.967,19.09]
[1680405001128,1.81495175,20.974,20.967,19.09]
[1680405001330,42.13869502,20.973,20.967,19.09]
[1680405001530,1.75309482,20.972,20.967,19.09]
[1680405001929,0.06185693,20.974,20.967,19.09]
[1680405002130,1.81495224,20.974,20.967,19.09]
[1680405002325,42.13872135,20.973,20.967,19.09]
[1680405002631,1.75309531,20.972,20.967,19.09]
[1680405003130,0.06185693,20.974,20.967,19.09]
[1680405003329,43.95369887,20.974,20.967,19.09]
[1680405003527,43.89184194,20.973,20.967,19.09]
[1680405003727,43.89184194,20.972,20.967,19.09]
[1680405003929,0.06185693,20.974,20.967,19.09]
[1680405004126,43.95370647,20.974,20.967,19.09]
[1680405004330,43.89184954,20.973,20.967,19.09]
[1680405004528,43.89184954,20.972,20.967,19.09]
[1680405004729,0.06185693,20.974,20.967,19.09]
[1680405004925,1.81495293,20.974,20.967,19.09]
[1680405005229,42.13875846,20.973,20.967,19.09]
[1680405005428,1.753096,20.972,20.967,19.09]
[1680405005821,0.06185693,20.974,20.967,19.09]
[1680405006026,1.81495328,20.974,20.967,19.09]
[1680405006230,42.13877797,20.973,20.967,19.09]
[1680405006427,1.75309635,20.972,20.967,19.09]
[1680405006824,0.06185693,20.974,20.967,19.09]
[1680405007029,43.95372733,20.974,20.967,19.09]
[1680405007230,43.8918704,20.973,20.967,19.09]
[1680405007533,43.8918704,20.972,20.967,19.09]
[1680405007835,0.06185693,20.974,20.967,19.09]
[1680405008131,1.81495354,20.974,20.967,19.09]
[1680405008432,42.13879307,20.973,20.967,19.09]
[1680405008631,1.75309661,20.972,20.967,19.09]
[1680405008832,42.13879307,20.971,20.967,19.09]
[1680405009234,42.20065,20.974,20.967,19.09]
[1680405009428,1.75313039,20.973,20.967,19.09]
[1680405009633,42.13879307,20.972,20.967,19.09]
[1680405010132,42.13879307,20.971,20.967,19.09]
[1680405010334,42.20065,20.974,20.967,19.09]
[1680405010535,1.75313086,20.973,20.967,19.09]
[1680405010834,42.13879307,20.972,20.967,19.09]
[1680405011236,42.20065,20.974,20.967,19.09]
[1680405011535,1.75309268,20.973,20.967,19.09]
[1680405011835,42.13879307,20.972,20.967,19.09]
[1680405012334,42.13879307,20.971,20.967,19.09]
[1680405012634,0.06185693,20.974,20.967,19.09]
[1680405012829,43.9560916,20.974,20.967,19.09]
[1680405013030,43.89423467,20.973,20.967,19.09]
[1680405013236,43.89423467,20.972,20.967,19.09]
[1680405013534,42.14109594,20.971,20.967,19.09]
[1680405013833,0.06185693,20.974,20.967,19.09]
[1680405014034,43.9559474,20.974,20.967,19.09]
[1680405014233,43.89409047,20.973,20.967,19.09]
[1680405014428,43.89409047,20.972,20.967,19.09]
[1680405014736,0.06185693,20.974,20.967,19.09]
[1680405014936,1.81495502,20.974,20.967,19.09]
[1680405015134,42.13887428,20.973,20.967,19.09]
[1680405015436,1.75309809,20.972,20.967,19.09]
[1680405015834,0.06185693,20.974,20.967,19.09]
[1680405016030,43.95386007,20.974,20.967,19.09]
[1680405016235,43.89200314,20.973,20.967,19.09]
[1680405016436,1.75309803,20.972,20.967,19.09]
[1680405016735,0.06185693,20.974,20.967,19.09]
[1680405016935,1.81495559,20.974,20.967,19.09]
[1680405017237,42.1389055,20.973,20.967,19.09]
[1680405017441,1.75309866,20.972,20.967,19.09]
[1680405017837,0.06185693,20.974,20.967,19.09]
[1680405018037,1.81498805,20.974,20.967,19.09]
[1680405018237,42.14068395,20.973,20.967,19.09]
[1680405018540,1.75313112,20.972,20.967,19.09]
[1680405019036,0.06185693,20.974,20.967,19.09]
[1680405019237,1.81498956,20.974,20.967,19.09]
[1680405019437,42.14077169,20.973,20.967,19.09]
[1680405019637,1.75313263,20.972,20.967,19.09]
[1680405020040,0.06185693,20.974,20.967,19.09]
[1680405020241,1.8149521,20.974,20.967,19.09]
[1680405020440,42.13871874,20.973,20.967,19.09]
[1680405020639,1.75309517,20.972,20.967,19.09]
[1680405021140,0.06185693,20.974,20.967,19.09]
[1680405021337,1.81499091,20.974,20.967,19.09]
[1680405021534,42.14084825,20.973,20.967,19.09]
[1680405021737,1.75313398,20.972,20.967,19.09]
[1680405022139,0.06185693,20.974,20.967,19.09]
[1680405022439,43.95573631,20.974,20.967,19.09]
[1680405022639,43.89387938,20.973,20.967,19.09]
[1680405022841,1.75313223,20.972,20.967,19.09]
[1680405023040,0.06185693,20.974,20.967,19.09]
[1680405023240,43.95575395,20.974,20.967,19.09]
[1680405023441,43.89389702,20.973,20.967,19.09]
[1680405023741,1.7531325,20.972,20.967,19.09]
[1680405023944,0.06185693,20.974,20.967,19.09]
[1680405024140,43.95576715,20.974,20.967,19.09]
[1680405024341,43.89391022,20.973,20.967,19.09]
[1680405024539,1.75313273,20.972,20.967,19.09]
[1680405024740,0.06185693,20.974,20.967,19.09]
[1680405024941,1.81499011,20.974,20.967,19.09]
[1680405025141,42.14080162,20.973,20.967,19.09]
[1680405025342,1.75313318,20.972,20.967,19.09]
[1680405025838,0.06185693,20.974,20.967,19.09]
[1680405026039,1.81498688,20.974,20.967,19.09]
[1680405026235,42.14062449,20.973,20.967,19.09]
[1680405026739,42.20248142,20.974,20.967,19.09]
[1680405027045,1.75311415,20.973,20.967,19.09]
[1680405027440,0.06185693,20.974,20.967,19.09]
[1680405027737,1.81497427,20.974,20.967,19.09]
[1680405028243,42.13994147,20.973,20.967,19.09]
[1680405028638,42.2017984,20.974,20.967,19.09]
[1680405028844,1.75310036,20.973,20.967,19.09]
[1680405029250,0.06185693,20.974,20.967,19.09]
[1680405029546,43.95401811,20.974,20.967,19.09]
[1680405029846,43.89216118,20.973,20.967,19.09]
[1680405030049,0.06185693,20.974,20.967,19.09]
[1680405030348,1.81496027,20.974,20.967,19.09]
[1680405030648,42.13916924,20.973,20.967,19.09]
[1680405031149,42.20102617,20.974,20.967,19.09]
[1680405031345,1.75310547,20.973,20.967,19.09]
[1680405031551,42.13916924,20.972,20.967,19.09]
[1680405032048,0.06185693,20.974,20.967,19.09]
[1680405032250,43.95212502,20.974,20.967,19.09]
[1680405032451,43.89026809,20.973,20.967,19.09]
[1680405032651,42.13716308,20.972,20.967,19.09]
[1680405032951,0.06185693,20.974,20.967,19.09]
[1680405033249,1.81496297,20.974,20.967,19.09]
[1680405033443,42.13932315,20.973,20.967,19.09]
[1680405033646,1.75310604,20.972,20.967,19.09]
[1680405034051,0.06185693,20.974,20.967,19.09]
[1680405034255,1.81496406,20.974,20.967,19.09]
[1680405034550,42.13937183,20.973,20.967,19.09]
[1680405034753,1.75310713,20.972,20.967,19.09]
[1680405035152,0.06185693,20.974,20.967,19.09]
[1680405035351,43.95224917,20.974,20.967,19.09]
[1680405035551,43.89039224,20.973,20.967,19.09]
[1680405035751,43.89039224,20.972,20.967,19.09]
[1680405035952,0.06185693,20.974,20.967,19.09]
[1680405036154,43.95441491,20.974,20.967,19.09]
[1680405036347,43.89255798,20.973,20.967,19.09]
[1680405036553,43.89255798,20.972,20.967,19.09]
[1680405036754,0.06185693,20.974,20.967,19.09]
[1680405036948,43.95443958,20.974,20.967,19.09]
[1680405037251,43.89258265,20.973,20.967,19.09]
[1680405037446,43.89258265,20.972,20.967,19.09]
[1680405037648,0.06185693,20.974,20.967,19.09]
[1680405037855,43.95234186,20.974,20.967,19.09]
[1680405038054,43.89048493,20.973,20.967,19.09]
[1680405038248,43.89048493,20.972,20.967,19.09]
[1680405038454,42.13741356,20.971,20.967,19.09]
[1680405038654,0.06185693,20.974,20.967,19.09]
[1680405038854,1.81496693,20.974,20.967,19.09]
[1680405039055,42.1395311,20.973,20.967,19.09]
[1680405039256,1.75311,20.972,20.967,19.09]
[1680405039757,0.06185693,20.974,20.967,19.09]
[1680405039953,1.8149674,20.974,20.967,19.09]
[1680405040158,42.1395574,20.973,20.967,19.09]
[1680405040358,1.75311047,20.972,20.967,19.09]
[1680405040758,0.06185693,20.974,20.967,19.09]
[1680405041060,1.81496778,20.974,20.967,19.09]
[1680405041256,42.13957907,20.973,20.967,19.09]
[1680405041451,1.75311085,20.972,20.967,19.09]
[1680405041652,42.13957907,20.971,20.967,19.09]
[1680405042159,42.201436,20.974,20.967,19.09]
[1680405042459,43.8927237,20.973,20.967,19.09]
[1680405042662,42.13961207,20.972,20.967,19.09]
[1680405042960,0.06185693,20.974,20.967,19.09]
[1680405043161,1.81490753,20.974,20.967,19.09]
[1680405043355,42.13626643,20.973,20.967,19.09]
[1680405043563,19.09,20.972,20.965,19.09]
[1680405043760,42.13626643,20.971,20.965,19.09]
[1680405057672,42.13626643,20.971,20.966,10.0]
[1680405058070,42.13626643,20.971,20.969,19.04]
[1680405058274,0.06185693,20.974,20.97,10.0]
[1680405058475,42.11089272,20.975,20.972,19.09]
[1680405058676,42.11089272,20.978,20.972,19.09]
[1680405058871,42.09792982,20.977,20.972,19.09]
[1680405059073,42.09792982,20.976,20.972,19.09]
[1680405059368,19.09,20.979,20.972,19.09]
[1680405061166,26.50490363,20.978,20.972,19.09]
[1680405067070,26.50490363,20.978,20.974,19.09]
[1680405067276,67.12260652,20.981,20.974,19.09]
[1680405067476,26.50140346,20.98,20.974,19.09]
[1680405068478,67.12260652,20.981,20.974,19.09]
[1680405077079,48.03260652,20.981,20.975,19.09]
[1680405077278,47.9646,20.981,20.975,19.09]
[1680405077882,19.15696311,20.985,20.978,19.04]
[1680405078081,28.25358065,20.984,20.978,19.04]
[1680405078281,28.25358065,20.983,20.978,19.04]
[1680405078484,19.15696311,20.985,20.978,19.04]
[1680405078682,28.24938178,20.984,20.978,19.04]
[1680405078882,28.24938178,20.983,20.978,19.04]
[1680405079083,19.15696311,20.985,20.978,19.04]
[1680405079284,28.24949181,20.984,20.978,19.04]
[1680405079582,28.24949181,20.983,20.978,19.04]
[1680405079782,19.15696311,20.985,20.978,19.04]
[1680405079983,28.24962828,20.984,20.978,19.04]
[1680405080186,28.24962828,20.983,20.978,19.04]
[1680405080381,19.15696311,20.985,20.978,19.04]
[1680405080583,28.97,20.982,20.966,10.0]
[1680405080885,18.97,20.982,20.966,10.0]
[1680405081084,18.97,20.982,20.974,19.04]
[1680405086187,1.75232556,20.981,20.974,19.04]
[1680405086582,1.75232556,20.981,20.975,10.0]
[1680405086987,1.75232556,20.981,20.976,19.04]
[1680405087184,18.97,20.983,20.976,19.04]
[1680405087384,1.75232693,20.982,20.976,19.04]
[1680405093892,18.97,20.983,20.976,19.04]
[1680405094992,18.97,20.983,20.977,10.0]
[1680405096995,19.03696311,20.985,20.978,19.09]
[1680405097195,1.75221983,20.984,20.978,19.09]
[1680405099098,1.75221983,20.984,20.979,19.09]
[1680405099298,1.75221983,20.983,20.979,19.09]
[1680405099599,19.09,20.986,20.979,19.09]
[1680405099799,28.25006145,20.985,20.979,19.09]
[1680405100001,28.25006145,20.984,20.979,19.09]
[1680405100200,1.75223586,20.983,20.979,19.09]
[1680405100498,19.09,20.986,20.979,19.09]
[1680405100698,28.25032637,20.985,20.979,19.09]
[1680405100902,1.75224062,20.984,20.979,19.09]
[1680405101097,28.25032637,20.984,20.979,19.09]
[1680405101297,1.75224062,20.983,20.979,19.09]
[1680405101497,1.75224062,20.982,20.979,19.09]
[1680405101698,19.09,20.986,20.979,19.09]
[1680405101898,28.25061153,20.985,20.979,19.09]
[1680405102099,28.25061153,20.984,20.979,19.09]
[1680405102302,1.75224569,20.983,20.979,19.09]
[1680405102502,1.75224569,20.982,20.979,19.09]
[1680405102800,19.09,20.986,20.979,19.09]
[1680405103002,28.24873876,20.985,20.979,19.09]
[1680405103193,28.24873876,20.984,20.979,19.09]
[1680405103398,1.75221277,20.983,20.979,19.09]
[1680405103597,1.75221277,20.982,20.979,19.09]
[1680405103801,19.09,20.986,20.979,19.09]
[1680405104101,28.24950922,20.985,20.979,19.09]
[1680405104305,28.24950922,20.984,20.979,19.09]
[1680405104603,1.75222627,20.983,20.979,19.09]
[1680405104799,1.75222627,20.982,20.979,19.09]
[1680405104995,19.09,20.986,20.979,19.09]
[1680405105201,28.24710748,20.985,20.979,19.09]
[1680405105499,28.24710748,20.984,20.979,19.09]
[1680405105701,1.75218214,20.983,20.979,19.09]
[1680405105900,1.75218214,20.982,20.979,19.09]
[1680405106101,19.09,20.986,20.979,19.09]
[1680405106402,28.2476721,20.985,20.979,19.09]
[1680405106701,19.09,20.986,20.979,19.09]
[1680405106702,1.75219341,20.984,20.979,19.09]
[1680405106904,1.75219341,20.983,20.979,19.09]
[1680405107200,1.75219341,20.982,20.979,19.09]
[1680405107401,19.09,20.986,20.979,19.09]
[1680405107701,28.24824958,20.985,20.979,19.09]
[1680405107903,1.75220318,20.984,20.979,19.09]
[1680405108202,1.75220318,20.983,20.979,19.09]
[1680405108400,1.75220318,20.982,20.979,19.09]
[1680405108701,19.09,20.986,20.979,19.09]
[1680405108900,28.24864555,20.985,20.979,19.09]
[1680405109101,1.75221064,20.984,20.979,19.09]
[1680405109302,1.75221064,20.983,20.979,19.09]
[1680405109500,19.09,20.986,20.979,19.09]
[1680405109700,28.24885851,20.985,20.979,19.09]
[1680405109902,1.75221442,20.984,20.979,19.09]
[1680405110101,1.75221442,20.983,20.979,19.09]
[1680405110296,19.09,20.986,20.979,19.09]
[1680405110499,28.24528987,20.985,20.979,19.09]
[1680405110697,1.75215027,20.984,20.979,19.09]
[1680405111002,1.75215027,20.983,20.979,19.09]
[1680405111203,19.09,20.986,20.979,19.09]
[1680405111405,28.24593496,20.985,20.979,19.09]
[1680405111704,1.75216227,20.984,20.979,19.09]
[1680405111905,1.75216227,20.983,20.979,19.09]
[1680405112098,19.09,20.986,20.979,19.09]
[1680405112397,28.24639582,20.985,20.979,19.09]
[1680405112601,1.75217045,20.984,20.979,19.09]
[1680405112800,1.75217045,20.983,20.979,19.09]
[1680405113005,19.09,20.986,20.979,19.09]
[1680405113206,28.24676442,20.985,20.979,19.09]
[1680405113405,1.7521769,20.984,20.979,19.09]
[1680405113707,19.09,20.986,20.979,19.09]
[1680405113708,28.24692904,20.983,20.979,19.09]
[1680405113902,26.49475214,20.982,20.979,19.09]
[1680405114108,19.09,20.986,20.979,19.09]
[1680405114309,28.24714281,20.985,20.979,19.09]
[1680405114607,28.24714281,20.984,20.979,19.09]
[1680405114908,28.24714281,20.983,20.979,19.09]
[1680405115111,26.49495922,20.982,20.979,19.09]
[1680405115312,26.49495922,20.985,20.979,19.09]
[1680405115513,1.75217707,20.984,20.979,19.09]
[1680405115812,26.49495922,20.983,20.979,19.09]
[1680405116206,26.49495922,20.985,20.979,19.09]
[1680405116414,28.24713985,20.984,20.979,19.09]
[1680405116713,28.24713985,20.983,20.979,19.09]
[1680405117012,28.24713985,20.982,20.979,19.09]
[1680405117214,26.49495922,20.981,20.979,19.09]
[1680405117415,19.09,20.986,20.979,19.09]
[1680405117615,28.24721399,20.985,20.979,19.09]
[1680405117814,28.24721399,20.984,20.979,19.09]
[1680405118015,28.24721399,20.983,20.979,19.09]
[1680405118214,28.24721399,20.982,20.979,19.09]
[1680405118414,26.49502916,20.981,20.979,19.09]
[1680405118715,19.09,20.986,20.979,19.09]
[1680405118915,28.24743171,20.985,20.979,19.09]
[1680405119115,28.24743171,20.984,20.979,19.09]
[1680405119414,28.24743171,20.983,20.979,19.09]
[1680405119615,28.24743171,20.982,20.979,19.09]
[1680405119814,26.49524299,20.981,20.979,19.09]
[1680405120012,19.09,20.986,20.979,19.09]
[1680405120211,28.24762378,20.985,20.979,19.09]
[1680405120412,28.24762378,20.984,20.979,19.09]
[1680405120616,28.24762378,20.983,20.979,19.09]
[1680405120813,28.24762378,20.982,20.979,19.09]
[1680405121014,19.09,20.986,20.979,19.09]
[1680405121214,28.24768556,20.985,20.979,19.09]
[1680405121414,28.24768556,20.984,20.979,19.09]
[1680405121714,28.24768556,20.983,20.979,19.09]
[1680405121913,28.24768556,20.982,20.979,19.09]
[1680405122115,19.09,20.986,20.979,19.09]
[1680405122415,28.2478148,20.985,20.979,19.09]
[1680405122714,28.2478148,20.984,20.979,19.09]
[1680405122917,28.2478148,20.983,20.979,19.09]
[1680405123214,28.2478148,20.982,20.979,19.09]
[1680405123412,19.09,20.986,20.979,19.09]
[1680405123615,28.24779789,20.985,20.979,19.09]
[1680405123816,28.24779789,20.984,20.979,19.09]
[1680405124017,28.24779789,20.983,20.979,19.09]
[1680405124216,26.49560245,20.982,20.979,19.09]
[1680405124416,26.49560245,20.985,20.979,19.09]
[1680405124618,28.24779942,20.984,20.979,19.09]
[1680405124817,28.24779942,20.983,20.979,19.09]
[1680405125018,26.49560245,20.982,20.979,19.09]
[1680405125220,26.49560245,20.985,20.979,19.09]
[1680405125417,28.24780083,20.984,20.979,19.09]
[1680405125616,28.24780083,20.983,20.979,19.09]
[1680405125816,26.49560245,20.982,20.979,19.09]
[1680405126016,26.49560245,20.985,20.979,19.09]
[1680405126216,1.75223793,20.984,20.979,19.09]
[1680405126415,26.49560245,20.983,20.979,19.09]
[1680405126818,26.49560245,20.985,20.979,19.09]
[1680405127019,1.75223905,20.984,20.979,19.09]
[1680405127221,26.49560245,20.983,20.979,19.09]
[1680405127720,26.49560245,20.982,20.979,19.09]
[1680405127913,26.49560245,20.981,20.979,19.09]
[1680405128115,26.49560245,20.985,20.979,19.09]
[1680405128414,1.75224111,20.984,20.979,19.09]
[1680405128718,26.49560245,20.983,20.979,19.09]
[1680405129218,26.49560245,20.982,20.979,19.09]
[1680405129417,19.09,20.985,20.977,10.0]
[1680405129418,26.49560245,20.984,20.978,19.09]
[1680405129620,1.75224215,20.983,20.978,19.09]
[1680405129818,26.49560245,20.982,20.978,19.09]
[1680405130218,26.49560245,20.981,20.978,19.09]
[1680405130519,26.49560245,20.98,20.978,19.09]
[1680405130720,26.49560245,20.979,20.978,19.09]
[1680405131519,26.49560245,20.984,20.978,19.09]
[1680405131720,1.75222654,20.983,20.978,19.09]
[1680405131921,26.49560245,20.982,20.978,19.09]
[1680405132425,26.49560245,20.981,20.978,19.09]
[1680405132619,26.49560245,20.98,20.978,19.09]
[1680405132812,26.49560245,20.979,20.978,19.09]
[1680405133921,26.49560245,20.984,20.978,19.09]
[1680405134121,1.75223355,20.983,20.978,19.09]
[1680405134322,26.49560245,20.982,20.978,19.09]
[1680405134720,26.49560245,20.981,20.978,19.09]
[1680405134919,26.49560245,20.984,20.978,19.09]
[1680405135120,28.24783834,20.983,20.978,19.09]
[1680405135320,26.49560245,20.982,20.978,19.09]
[1680405135620,26.49560245,20.981,20.978,19.09]
[1680405135822,26.49560245,20.984,20.978,19.09]
[1680405136024,1.75223743,20.983,20.978,19.09]
[1680405136225,26.49560245,20.982,20.978,19.09]
[1680405136723,26.49560245,20.981,20.978,19.09]
[1680405136923,26.49560245,20.98,20.978,19.09]
[1680405137125,26.49560245,20.984,20.978,19.09]
[1680405137326,1.75224019,20.983,20.978,19.09]
[1680405137524,26.49560245,20.982,20.978,19.09]
[1680405137925,26.49560245,20.984,20.978,19.09]
[1680405138126,1.75224132,20.983,20.978,19.09]
[1680405138319,26.49560245,20.982,20.978,19.09]
[1680405138824,26.49560245,20.981,20.978,19.09]
[1680405139022,26.49560245,20.98,20.978,19.09]
[1680405139218,26.49560245,20.984,20.978,19.09]
[1680405139422,28.24783035,20.983,20.978,19.09]
[1680405139623,28.24783035,20.982,20.978,19.09]
[1680405139821,26.49560245,20.981,20.978,19.09]
[1680405140023,26.49560245,20.98,20.978,19.09]
[1680405140224,26.49560245,20.984,20.978,19.09]
[1680405140422,28.24783147,20.983,20.978,19.09]